{"text_format":"1","workbook":"xlsx","n_sheets":2,"sheets":["GİRİŞ","SÖZLEŞME"],"not_rendered":{"charts":0,"images":2,"macros":1,"external_links":0,"defined_names":2,"comments":1,"pivot_tables":0},"unopened":[],"bounds":{"document_bytes":16777216,"sheet_cells":100000,"rows_first":2000,"rows_last":500,"rows_between":2000,"halvings":0,"cell_chars":16384,"cell_head_chars":4096},"cells_cut":0,"cells_raw":0,"read":"whole","date_system":"1900"}

{"sheet":"GİRİŞ","index":0,"n_rows":33,"n_cols":33,"rows_kept":33,"cut":false,"hidden":false,"merged":[[26,3,26,5],[26,6,26,9],[31,3,32,5],[28,3,28,5],[28,6,28,9],[27,3,27,5],[27,6,27,9],[29,8,30,8],[29,7,30,7],[32,8,32,9],[31,8,31,9],[32,6,32,7],[31,6,31,7],[29,9,30,9],[29,3,29,4],[30,3,30,4],[20,5,20,9],[20,3,20,4],[22,3,22,5],[24,3,24,5],[25,3,25,5],[22,6,22,9],[23,6,23,9],[24,6,24,9],[25,6,25,9],[1,1,1,2],[23,3,23,4],[5,3,5,4],[7,3,7,4],[8,3,8,4],[9,3,9,4],[10,3,10,4],[11,3,11,4],[13,3,13,4],[14,3,14,4],[15,3,15,4],[12,3,12,9],[13,5,13,9],[14,5,14,9],[15,5,15,9],[21,3,21,9],[18,3,18,4],[19,3,19,4],[1,7,1,8],[1,5,1,6],[1,9,1,10],[5,5,5,9],[3,3,3,9],[7,5,7,9],[8,5,8,9],[9,5,9,9],[10,5,10,9],[6,3,6,9],[11,5,11,9],[18,5,18,9],[19,5,19,9],[4,12,4,21],[4,22,4,31],[4,32,4,41],[16,3,16,9],[17,3,17,4],[17,5,17,9],[1,12,1,29],[1,30,1,46],[2,30,2,46],[2,12,2,29],[3,22,3,31],[3,32,3,41],[3,12,3,21]]}
[]
[null,"OKUL:",null,null,"İL:",null,null,"İLÇE:"]
[null,null,null,null,null,null,null,null,null,null,null,null,"İLÇE MİLLİ EĞİTİM MÜDÜRLÜĞÜ ZİRAAT HESABI (IBAN) :"]
[null,null,null,"OKUL KANTİN \nKİRA BEDELİ HESAPLAMA",null,null,null,null,null,null,null,null,null,null,null,null,null,null,null,null,null,null,{"$f":"F14","v":0}]
[null,null,null,null,null,null,null,null,null,null,null,null,"Birlik Başkanı",null,null,null,null,null,null,null,null,null,"Yüklenici",null,null,null,null,null,null,null,null,null,"Esnaf Odası Başkanı"]
[null,null,null,"Eğitim-Öğretim Yılı"]
[null,null,null,"BİRLİĞİN;"]
[null,null,null,"Okul Aile Birliği (OKUL ADI) :",null,{"$f":"CONCATENATE(J2,\" \",D2)","v":" "}]
[null,null,null,"Okul Aile Birliği (OKUL ADRESİ) :"]
[null,null,null,"Okul Aile Birliği (OKUL TEL.) :"]
[null,null,null,"(OKULUN YÜZÖLÇÜMÜ) Bilgileri :"]
[null,null,null,"KANTİN YERİ (kaç m²) :"]
[null,null,null,"YÜKLENİCİNİN;"]
[null,null,null,"Adı SOYADI :"]
[null,null,null,"Adresi :"]
[null,null,null,"Telefonu :"]
[null,null,null,"SÖZLEŞMENİN;"]
[null,null,null,"İmzalanacağı Tarih:"]
[null,null,null,"Başlama Tarihi:"]
[null,null,null,"Bitiş Tarihi:"]
[]
[null,null,null,"KİRA ÖDENMESİNDEKİ ESASLAR MADDE-7"]
[null,null,null,"AYLIK KİRA BEDELİ (KDV Hariç)"]
[null,null,null,"YILIK MİKTAR (Toplam Kaç ay?)",null,9,{"$f":"ROUND(G23*F24,2)","v":0}]
[null,null,null,"DEFTERDARLIK/MAL MÜDÜRLÜĞÜ\n(Yıllık Ücretin %3'ü Yıllık Arz Bedeli)",null,null,{"$f":"ROUND((G24/100)*3,2)","v":0}]
[null,null,null,"Aylık Arz Bedeli Tutarı ",null,null,{"$f":"ROUND(G25/9,2)","v":0}]
[null,null,null,"Aylık Arz Bedelinden Sonra Kalan",null,null,{"$f":"ROUND(G23-G26,2)","v":0}]
[null,null,null,"Defterdarlık/Mal Müdürlüğü Yıllık Ödemesi Sonrası Geri Kalan",null,null,{"$f":"ROUND(G24-G25,2)","v":0}]
[null,null,null,"Kesin Teminat Tutarı Yılık Kiranın %6'sı",null,null,{"$f":"ROUND((G24/100)*6,2)","v":0}]
[null,null,null,"İl Milli Eğitim Payı %10",null,"AYLIK",{"$f":"ROUND((G23-G26)/100*10,2)","v":0},{"$f":"G30+G31","v":0},"YILLIK",{"$f":"ROUND(H30*F24,2)","v":0}]
[null,null,null,"İlçe Milli Eğitim Pay %10",null,"AYLIK",{"$f":"ROUND((G23-G26)/100*10,2)","v":0}]
[null,null,null,"OKUL AİLE BİRLİĞİNE YATACAK  MİKTAR %80",null,null,"AYLIK",null,"YILLIK"]
[null,null,null,null,null,null,{"$f":"ROUND(I33/F24,2)","v":0},null,{"$f":"ROUND((G28/100)*80,2)","v":0}]

{"sheet":"SÖZLEŞME","index":1,"n_rows":390,"n_cols":99,"rows_kept":390,"cut":false,"hidden":false,"merged":[[22,5,22,48],[55,2,55,52],[56,2,56,52],[113,2,121,52],[77,2,81,52],[58,2,61,52],[84,2,84,52],[87,2,93,52],[63,2,65,52],[66,2,68,52],[71,2,74,52],[34,16,34,26],[35,16,35,26],[34,27,34,37],[35,27,35,37],[94,2,97,52],[100,2,103,52],[108,2,112,52],[124,2,125,52],[128,2,138,52],[139,2,158,52],[163,2,212,52],[288,18,288,32],[288,33,288,51],[230,2,230,52],[233,2,235,52],[236,2,237,52],[239,2,240,52],[219,2,222,52],[274,2,279,52],[280,2,282,52],[334,1,334,2],[334,3,336,52],[337,1,337,2],[337,3,337,52],[338,1,338,2],[338,3,338,52],[339,1,339,2],[351,3,351,6],[347,21,347,31],[348,3,348,6],[360,50,360,51],[344,3,346,51],[361,2,361,52],[362,3,364,51],[349,50,349,51],[350,50,350,51],[351,50,351,51],[355,3,355,6],[355,50,355,51],[348,7,348,14],[349,7,349,14],[352,3,352,6],[352,50,352,51],[349,3,349,6],[350,3,350,6],[353,3,353,6],[354,3,354,6],[353,50,353,51],[354,50,354,51],[359,3,359,6],[359,50,359,51],[350,7,350,14],[351,7,351,14],[388,2,388,17],[388,18,388,32],[388,33,388,51],[378,50,378,51],[379,2,380,52],[381,1,381,2],[381,3,383,52],[378,43,378,49],[370,3,370,6],[370,50,370,51],[371,3,371,6],[371,50,371,51],[371,7,371,14],[371,15,371,20],[370,7,370,14],[370,15,370,20],[370,43,370,49],[359,15,359,20],[352,7,352,14],[353,7,353,14],[354,7,354,14],[384,3,384,41],[384,42,384,52],[387,2,387,17],[387,18,387,32],[387,33,387,51],[368,3,368,6],[368,50,368,51],[369,3,369,6],[369,50,369,51],[368,43,368,49],[369,7,369,14],[369,15,369,20],[369,43,369,49],[367,3,367,6],[367,50,367,51],[367,7,367,14],[367,15,367,20],[367,43,367,49],[368,7,368,14],[368,15,368,20],[360,43,360,49],[360,3,360,42],[347,7,347,14],[347,15,347,20],[347,3,347,6],[347,43,347,51],[348,15,348,20],[348,50,348,51],[348,43,348,49],[349,43,349,49],[350,43,350,49],[351,43,351,49],[352,43,352,49],[353,43,353,49],[354,43,354,49],[355,43,355,49],[359,43,359,49],[355,7,355,14],[359,7,359,14],[349,15,349,20],[350,15,350,20],[351,15,351,20],[352,15,352,20],[353,15,353,20],[365,3,365,6],[365,7,365,14],[365,15,365,20],[365,21,365,31],[365,43,365,51],[366,3,366,6],[366,7,366,14],[366,15,366,20],[366,43,366,49],[366,50,366,51],[377,3,377,6],[377,7,377,14],[377,15,377,20],[377,43,377,49],[377,50,377,51],[378,3,378,42],[371,43,371,49],[372,7,372,14],[372,15,372,20],[372,43,372,49],[373,7,373,14],[373,15,373,20],[373,43,373,49],[372,3,372,6],[372,50,372,51],[373,3,373,6],[373,50,373,51],[375,3,375,6],[376,3,376,6],[374,43,374,49],[375,43,375,49],[376,43,376,49],[366,21,366,42],[367,21,367,42],[368,21,368,42],[369,21,369,42],[370,21,370,42],[371,21,371,42],[372,21,372,42],[373,21,373,42],[374,21,374,42],[375,21,375,42],[376,21,376,42],[374,15,374,20],[375,15,375,20],[376,15,376,20],[374,7,374,14],[375,7,375,14],[376,7,376,14],[358,3,358,6],[358,7,358,14],[358,15,358,20],[358,21,358,42],[377,21,377,42],[374,50,374,51],[375,50,375,51],[376,50,376,51],[348,21,348,42],[349,21,349,42],[350,21,350,42],[351,21,351,42],[352,21,352,42],[353,21,353,42],[354,21,354,42],[355,21,355,42],[359,21,359,42],[356,43,356,49],[357,43,357,49],[358,43,358,49],[356,50,356,51],[357,50,357,51],[358,50,358,51],[374,3,374,6],[14,3,18,50],[356,3,356,6],[356,7,356,14],[356,15,356,20],[356,21,356,42],[357,3,357,6],[357,7,357,14],[357,15,357,20],[357,21,357,42],[354,15,354,20],[355,15,355,20],[339,3,343,52],[328,2,328,52],[329,2,329,52],[330,2,330,52],[331,1,331,2],[331,3,333,52],[242,2,242,52],[243,2,268,52],[287,2,287,17],[287,18,287,32],[287,33,287,51],[288,2,288,17],[223,2,228,52]]}
[]
[]
[]
[]
[]
[]
[]
[]
[]
[]
[]
[]
[]
[]
[null,null,null,{"$f":"IF(GİRİŞ!D2=\"\",\"\",GİRİŞ!D2)","v":""}]
[]
[]
[]
[]
[]
[]
[]
[null,null,null,null,null,{"$f":"CONCATENATE(GİRİŞ!F6,\" \",GİRİŞ!D6)","v":" Eğitim-Öğretim Yılı"}]
[]
[]
[]
[]
[]
[]
[]
[]
[]
[]
[]
[null,null,null,null,null,null,null,null,null,null,null,null,null,null,null,null,"Başlangıç Tarihi",null,null,null,null,null,null,null,null,null,null,{"$f":"GİRİŞ!F19","v":0}]
[null,null,null,null,null,null,null,null,null,null,null,null,null,null,null,null,"Bitiş Tarihi",null,null,null,null,null,null,null,null,null,null,{"$f":"GİRİŞ!F20","v":0}]
[]
[]
[]
[]
[]
[]
[]
[]
[]
[]
[]
[]
[]
[]
[null,null,null,null,null,null,null,null,null,null,null,null,null,null,null,null,null,null,null,null,null,null,null,null,null,null,null,null,null,null,null,null,null,null,null,null,null,null,null,null,null,null,null,null,null,null,null,null,null,null,null,null,{"$f":"GİRİŞ!F$6","v":0}]
[]
[]
[]
[]
[null,null,"OKULLARDA BULUNAN KANTİN VE BENZERİ YERLERİ KİRALAMA SÖZLEŞMESİ"]
[null,null,"GENEL ŞARTLAR"]
[null,null,"Sözleşmenin tarafları"]
[null,null,{"$f":"CONCATENATE(CC59,\" \",GİRİŞ!F8,\" \",SÖZLEŞME!CC60,\" \",GİRİŞ!F14,\" \",CC61)","v":"MADDE 1- Bu sözleşme, bir tarafta    Okul-Aile Birliği (Bundan sonra “Birlik” olarak anılacaktır.) ile diğer tarafta işletmeci   (Bundan sonra “Yüklenici” olarak anılacaktır.) arasında aşağıda yazılı şartlar dâhilinde akdedilmiştir."},null,null,null,null,null,null,null,null,null,null,null,null,null,null,null,null,null,null,null,null,null,null,null,null,null,null,null,null,null,null,null,null,null,null,null,null,null,null,null,null,null,null,null,null,null,null,null,null,null,null,null,null,null,null,null,null,null,null,null,null,null,null,null,null,null,null,null,null,null,null,null,null,null,null,null,null,null,"MADDE 1- Bu sözleşme, bir tarafta "]
[null,null,null,null,null,null,null,null,null,null,null,null,null,null,null,null,null,null,null,null,null,null,null,null,null,null,null,null,null,null,null,null,null,null,null,null,null,null,null,null,null,null,null,null,null,null,null,null,null,null,null,null,null,null,null,null,null,null,null,null,null,null,null,null,null,null,null,null,null,null,null,null,null,null,null,null,null,null,null,null,"Okul-Aile Birliği (Bundan sonra “Birlik” olarak anılacaktır.) ile diğer tarafta işletmeci "]
[null,null,null,null,null,null,null,null,null,null,null,null,null,null,null,null,null,null,null,null,null,null,null,null,null,null,null,null,null,null,null,null,null,null,null,null,null,null,null,null,null,null,null,null,null,null,null,null,null,null,null,null,null,null,null,null,null,null,null,null,null,null,null,null,null,null,null,null,null,null,null,null,null,null,null,null,null,null,null,null,"(Bundan sonra “Yüklenici” olarak anılacaktır.) arasında aşağıda yazılı şartlar dâhilinde akdedilmiştir."]
[]
[null,null,"Taraflara ilişkin bilgiler"]
[null,null,{"$f":"CONCATENATE(CC64,\" \",GİRİŞ!F9,\" \",SÖZLEŞME!CC65,\" \",GİRİŞ!F10,\" \",SÖZLEŞME!CC66,\" \",GİRİŞ!F15,\" \",SÖZLEŞME!CC67,\" \",GİRİŞ!F16,\" \",SÖZLEŞME!CC68)","v":"MADDE 2- Birliğin adresi  olup Tel no:  ’dir. Kiracının tebligata esas adresi:  olup Cep tel. No:  ’dır."},null,null,null,null,null,null,null,null,null,null,null,null,null,null,null,null,null,null,null,null,null,null,null,null,null,null,null,null,null,null,null,null,null,null,null,null,null,null,null,null,null,null,null,null,null,null,null,null,null,null,null,null,null,null,null,null,null,null,null,null,null,null,null,null,null,null,null,null,null,null,null,null,null,null,null,null,null,"MADDE 2- Birliğin adresi"]
[null,null,null,null,null,null,null,null,null,null,null,null,null,null,null,null,null,null,null,null,null,null,null,null,null,null,null,null,null,null,null,null,null,null,null,null,null,null,null,null,null,null,null,null,null,null,null,null,null,null,null,null,null,null,null,null,null,null,null,null,null,null,null,null,null,null,null,null,null,null,null,null,null,null,null,null,null,null,null,null,"olup Tel no:"]
[null,null,null,null,null,null,null,null,null,null,null,null,null,null,null,null,null,null,null,null,null,null,null,null,null,null,null,null,null,null,null,null,null,null,null,null,null,null,null,null,null,null,null,null,null,null,null,null,null,null,null,null,null,null,null,null,null,null,null,null,null,null,null,null,null,null,null,null,null,null,null,null,null,null,null,null,null,null,null,null,"’dir. Kiracının tebligata esas adresi:"]
[null,null,"          Her iki taraf da yukarda belirtilen adresleri tebligat adresi olarak kabul etmişlerdir. Adres değişiklikleri usulüne uygun şekilde karşı tarafa tebliğ edilmedikçe en son bildirilen adrese yapılacak tebliğ ilgili tarafa yapılmış sayılır.",null,null,null,null,null,null,null,null,null,null,null,null,null,null,null,null,null,null,null,null,null,null,null,null,null,null,null,null,null,null,null,null,null,null,null,null,null,null,null,null,null,null,null,null,null,null,null,null,null,null,null,null,null,null,null,null,null,null,null,null,null,null,null,null,null,null,null,null,null,null,null,null,null,null,null,null,null,"olup Cep tel. No:"]
[null,null,null,null,null,null,null,null,null,null,null,null,null,null,null,null,null,null,null,null,null,null,null,null,null,null,null,null,null,null,null,null,null,null,null,null,null,null,null,null,null,null,null,null,null,null,null,null,null,null,null,null,null,null,null,null,null,null,null,null,null,null,null,null,null,null,null,null,null,null,null,null,null,null,null,null,null,null,null,null,"’dır."]
[]
[null,null,null,null,null,null,null,null,null,null,null,null,null,null,null,null,null,null,null,null,null,null,null,null,null,null,null,null,null,null,null,null,null,null,null,null,null,null,null,null,null,null,null,null,null,null,null,null,null,null,null,null,null,null,null,null,null,null,null,null,null,null,null,null,null,null,null,null,null,null,null,null,null,null,null,null,null,null,null,null,"MADDE 3- Sözleşme konusu iş;"]
[null,null,"İş tanımı",null,null,null,null,null,null,null,null,null,null,null,null,null,null,null,null,null,null,null,null,null,null,null,null,null,null,null,null,null,null,null,null,null,null,null,null,null,null,null,null,null,null,null,null,null,null,null,null,null,null,null,null,null,null,null,null,null,null,null,null,null,null,null,null,null,null,null,null,null,null,null,null,null,null,null,null,null,"yüzölçümlü ve Millî Eğitim Bakanlığına tahsisli taşınmaz mal üzerinde bulunan"]
[null,null,{"$f":"CONCATENATE(CC70,\" \",GİRİŞ!F11,\" \",SÖZLEŞME!CC71,\" \",GİRİŞ!F8,\" \",SÖZLEŞME!CC72,\" \",GİRİŞ!F12,\" \",SÖZLEŞME!CC73,\" \",GİRİŞ!F8,\" \",SÖZLEŞME!CC74)","v":"MADDE 3- Sözleşme konusu iş;  yüzölçümlü ve Millî Eğitim Bakanlığına tahsisli taşınmaz mal üzerinde bulunan   ’ndaki yaklaşık  ’lik   kantini işletme hakkının verilmesi (kiralama) sözleşmenin konusunu oluşturmaktadır."},null,null,null,null,null,null,null,null,null,null,null,null,null,null,null,null,null,null,null,null,null,null,null,null,null,null,null,null,null,null,null,null,null,null,null,null,null,null,null,null,null,null,null,null,null,null,null,null,null,null,null,null,null,null,null,null,null,null,null,null,null,null,null,null,null,null,null,null,null,null,null,null,null,null,null,null,null,"’ndaki yaklaşık"]
[null,null,null,null,null,null,null,null,null,null,null,null,null,null,null,null,null,null,null,null,null,null,null,null,null,null,null,null,null,null,null,null,null,null,null,null,null,null,null,null,null,null,null,null,null,null,null,null,null,null,null,null,null,null,null,null,null,null,null,null,null,null,null,null,null,null,null,null,null,null,null,null,null,null,null,null,null,null,null,null,"’lik"]
[null,null,null,null,null,null,null,null,null,null,null,null,null,null,null,null,null,null,null,null,null,null,null,null,null,null,null,null,null,null,null,null,null,null,null,null,null,null,null,null,null,null,null,null,null,null,null,null,null,null,null,null,null,null,null,null,null,null,null,null,null,null,null,null,null,null,null,null,null,null,null,null,null,null,null,null,null,null,null,null,"kantini işletme hakkının verilmesi (kiralama) sözleşmenin konusunu oluşturmaktadır."]
[]
[null,null,null,null,null,null,null,null,null,null,null,null,null,null,null,null,null,null,null,null,null,null,null,null,null,null,null,null,null,null,null,null,null,null,null,null,null,null,null,null,null,null,null,null,null,null,null,null,null,null,null,null,null,null,null,null,null,null,null,null,null,null,null,null,null,null,null,null,null,null,null,null,null,null,null,null,null,null,null,null,"MADDE 4-İşbu sözleşmenin komisyonca"]
[null,null,"Sözleşmenin bedeli",null,null,null,null,null,null,null,null,null,null,null,null,null,null,null,null,null,null,null,null,null,null,null,null,null,null,null,null,null,null,null,null,null,null,null,null,null,null,null,null,null,null,null,null,null,null,null,null,null,null,null,null,null,null,null,null,null,null,null,null,null,null,null,null,null,null,null,null,null,null,null,null,null,null,null,null,null,"("]
[null,null,{"$f":"CONCATENATE(CC76,\" \",CD78,\" \",CC80,\" \",CE82,\" \",GİRİŞ!G24,\" \",SÖZLEŞME!CC84)","v":"MADDE 4-İşbu sözleşmenin komisyonca (9) Dokuz ay üzerinden belirlenen yıllık kira bedeli 0 (KDV hariç) TL’dir. Kiracı, her aya ilişkin kira bedelini Okulların tatil olduğu dönem (Haziran, Temmuz ve Ağustos ayları) hariç o ayın 5-15 inci günleri arasında peşin   (KDV hariç)TL olarak (9) Dokuz eşit taksitte toplam 0 (KDV hariç) kira bedeli öder. Tam yıl işletilen yerler için ise on iki ay kira öder."},null,null,null,null,null,null,null,null,null,null,null,null,null,null,null,null,null,null,null,null,null,null,null,null,null,null,null,null,null,null,null,null,null,null,null,null,null,null,null,null,null,null,null,null,null,null,null,null,null,null,null,null,null,null,null,null,null,null,null,null,null,null,null,null,null,null,null,null,null,null,null,null,null,null,null,null,null,")",{"$f":"CONCATENATE(CC77,GİRİŞ!F24,SÖZLEŞME!CC78,\" \",SÖZLEŞME!CC79)","v":"(9) Dokuz"}]
[null,null,null,null,null,null,null,null,null,null,null,null,null,null,null,null,null,null,null,null,null,null,null,null,null,null,null,null,null,null,null,null,null,null,null,null,null,null,null,null,null,null,null,null,null,null,null,null,null,null,null,null,null,null,null,null,null,null,null,null,null,null,null,null,null,null,null,null,null,null,null,null,null,null,null,null,null,null,null,null,{"$f":"Sayıyı_Yazıya_Çevir(GİRİŞ!F24)","v":"Dokuz"}]
[null,null,null,null,null,null,null,null,null,null,null,null,null,null,null,null,null,null,null,null,null,null,null,null,null,null,null,null,null,null,null,null,null,null,null,null,null,null,null,null,null,null,null,null,null,null,null,null,null,null,null,null,null,null,null,null,null,null,null,null,null,null,null,null,null,null,null,null,null,null,null,null,null,null,null,null,null,null,null,null,"ay üzerinden belirlenen yıllık kira bedeli"]
[null,null,null,null,null,null,null,null,null,null,null,null,null,null,null,null,null,null,null,null,null,null,null,null,null,null,null,null,null,null,null,null,null,null,null,null,null,null,null,null,null,null,null,null,null,null,null,null,null,null,null,null,null,null,null,null,null,null,null,null,null,null,null,null,null,null,null,null,null,null,null,null,null,null,null,null,null,null,null,null,"(KDV hariç) TL’dir. Kiracı, her aya ilişkin kira bedelini Okulların tatil olduğu dönem (Haziran, Temmuz ve Ağustos ayları) hariç o ayın 5-15 inci günleri arasında peşin"]
[null,null,null,null,null,null,null,null,null,null,null,null,null,null,null,null,null,null,null,null,null,null,null,null,null,null,null,null,null,null,null,null,null,null,null,null,null,null,null,null,null,null,null,null,null,null,null,null,null,null,null,null,null,null,null,null,null,null,null,null,null,null,null,null,null,null,null,null,null,null,null,null,null,null,null,null,null,null,null,null,"(KDV hariç)TL olarak",null,{"$f":"CONCATENATE(GİRİŞ!G24,\" \",SÖZLEŞME!CC81,\" \",GİRİŞ!G23,\" \",SÖZLEŞME!E22,\" \",SÖZLEŞME!CC82,\" \",SÖZLEŞME!CD78,\" \",SÖZLEŞME!CC83)","v":"0 (KDV hariç) TL’dir. Kiracı, her aya ilişkin kira bedelini Okulların tatil olduğu dönem (Haziran, Temmuz ve Ağustos ayları) hariç o ayın 5-15 inci günleri arasında peşin   (KDV hariç)TL olarak (9) Dokuz eşit taksitte toplam"}]
[null,null,null,null,null,null,null,null,null,null,null,null,null,null,null,null,null,null,null,null,null,null,null,null,null,null,null,null,null,null,null,null,null,null,null,null,null,null,null,null,null,null,null,null,null,null,null,null,null,null,null,null,null,null,null,null,null,null,null,null,null,null,null,null,null,null,null,null,null,null,null,null,null,null,null,null,null,null,null,null,"eşit taksitte toplam"]
[null,null,"Vergi, resim, harçlar ve diğer giderler",null,null,null,null,null,null,null,null,null,null,null,null,null,null,null,null,null,null,null,null,null,null,null,null,null,null,null,null,null,null,null,null,null,null,null,null,null,null,null,null,null,null,null,null,null,null,null,null,null,null,null,null,null,null,null,null,null,null,null,null,null,null,null,null,null,null,null,null,null,null,null,null,null,null,null,null,null,"(KDV hariç) kira bedeli öder. Tam yıl işletilen yerler için ise on iki ay kira öder."]
[null,null,"MADDE 5-Kiralama ile ilgili her türlü vergi, resim, harçlar ve diğer giderler kiracıya aittir. "]
[]
[null,null,"Sözleşmenin süresi ve yıllık artışları"]
[null,null,"MADDE 6- Kira sözleşmesinin süresi 1 (bir) yıldır. Kiralama işleminde ilk yıl kira bedeli ihale bedelidir. İkinci ve izleyen yıllar kira bedelleri Türkiye İstatistik Kurumunca (TÜİK) yayımlanan Tüketici Fiyatları Endeksi (TÜFE-on iki aylık ortalamalara göre yüzde değişim) oranında artırılır. Ancak kira bedelinin tespitine ilişkin unsurlarda önemli ölçüde farklılaşma (öğrenci mevcudunda en az %25 oranında azalış veya artış, kiracının cirosunu önemli derecede etkileyecek Bakanlık tarafından getirilen kısıtlayıcı düzenlemeler) olması halinde, muhammen bedel yeniden tespit edilerek mevcut kiracıya aynı usulle ihale edilerek yeni sözleşme düzenlenir."]
[]
[]
[]
[]
[]
[]
[null,null,"          Sözleşme süresi biten ve sözleşmeden doğan yükümlülüklerini yerine getiren mevcut kantin işletmecilerinin talep etmesi ve bu talebin okul aile birlikleri tarafından uygun görülmesi halinde bu kantinler pazarlık usulü ile aynı işletmeciye yeniden kiralanabilir. Bu kiralamalarda da sözleşme süresi beş yılı, toplam sözleşme süresi de ilk sözleşme tarihinden itibaren yirmi yılı geçemez."]
[]
[]
[]
[]
[null,null,"Kira ödenmesindeki esaslar"]
[null,null,{"$f":"CONCATENATE(CC102,CC103,CD103,CE103,CF103,CC104)","v":"MADDE 7- Kiracı dokuz ay üzerinden belirlenen yıllık kira bedelinin %3  ( 0 TL  ) arz bedelini peşin olarak veya üçer aylık dönemler itibarıyla dönemi takip eden ayın onuncu günü sonuna kadar defterdarlık/ mal müdürlüğü hesabına ödeyecek ve ödeme dekontunun aslını birliğe/okul müdürlüğüne teslim edecektir."}]
[null,null,null,null,null,null,null,null,null,null,null,null,null,null,null,null,null,null,null,null,null,null,null,null,null,null,null,null,null,null,null,null,null,null,null,null,null,null,null,null,null,null,null,null,null,null,null,null,null,null,null,null,null,null,null,null,null,null,null,null,null,null,null,null,null,null,null,null,null,null,null,null,null,null,null,null,null,null,null,null,"MADDE 7- Kiracı dokuz ay üzerinden belirlenen yıllık kira bedelinin %3 "]
[null,null,null,null,null,null,null,null,null,null,null,null,null,null,null,null,null,null,null,null,null,null,null,null,null,null,null,null,null,null,null,null,null,null,null,null,null,null,null,null,null,null,null,null,null,null,null,null,null,null,null,null,null,null,null,null,null,null,null,null,null,null,null,null,null,null,null,null,null,null,null,null,null,null,null,null,null,null,null,null," ( ",{"$f":"GİRİŞ!G25","v":0}," TL "," )"]
[null,null,null,null,null,null,null,null,null,null,null,null,null,null,null,null,null,null,null,null,null,null,null,null,null,null,null,null,null,null,null,null,null,null,null,null,null,null,null,null,null,null,null,null,null,null,null,null,null,null,null,null,null,null,null,null,null,null,null,null,null,null,null,null,null,null,null,null,null,null,null,null,null,null,null,null,null,null,null,null," arz bedelini peşin olarak veya üçer aylık dönemler itibarıyla dönemi takip eden ayın onuncu günü sonuna kadar defterdarlık/ mal müdürlüğü hesabına ödeyecek ve ödeme dekontunun aslını birliğe/okul müdürlüğüne teslim edecektir."]
[null,"Sy.1/6",null,null,null,null,null,null,null,null,null,null,null,null,null,null,null,null,null,null,null,null,null,null,null,null,null,null,null,null,null,null,null,null,null,null,null,null,null,null,null,null,null,null,null,null,null,null,null,null,null,null,{"$f":"GİRİŞ!F$6","v":0}]
[]
[]
[]
[null,null,{"$f":"CONCATENATE(CF112,\" \",CC114,\" \",CD114,\" \",CE114,\" \",CC115,\" \",CD115,\" \",CE115)","v":"Kiracı aylık %3 arz bedelinin (0 TL ) ödenmesinden geriye kalan kira bedelinin (0 TL ) %10’u (0 TL ) İl Millî Eğitim Müdürlüğüne,  %10’u (0 TL ) İlçe Millî Eğitim Müdürlüğüne,  %80’i de (0 TL ) birliğin göstereceği hesaplara ilgili ayın 5-15 tarihleri arasında yatırarak dekontlarını birliğe/okul müdürlüğüne teslim edecektir. "}]
[]
[null,null,null,null,null,null,null,null,null,null,null,null,null,null,null,null,null,null,null,null,null,null,null,null,null,null,null,null,null,null,null,null,null,null,null,null,null,null,null,null,null,null,null,null,null,null,null,null,null,null,null,null,null,null,null,null,null,null,null,null,null,null,null,null,null,null,null,null,null,null,null,null,null,null,null,null,null,null,null,null,"Kiracı aylık %3 arz bedelinin",{"$f":"CONCATENATE(\"(\",GİRİŞ!G26,GİRİŞ!K22,\" TL \",\")\")","v":"(0 TL )"}]
[null,null,null,null,null,null,null,null,null,null,null,null,null,null,null,null,null,null,null,null,null,null,null,null,null,null,null,null,null,null,null,null,null,null,null,null,null,null,null,null,null,null,null,null,null,null,null,null,null,null,null,null,null,null,null,null,null,null,null,null,null,null,null,null,null,null,null,null,null,null,null,null,null,null,null,null,null,null,null,null,"ödenmesinden geriye kalan kira bedelinin",{"$f":"CONCATENATE(\"(\",GİRİŞ!G27,\" TL \",\")\")","v":"(0 TL )"},null,{"$f":"CONCATENATE(CC111,\" \",CD111,\" \",CC112,\" \",CD112,\" \",CC113,\" \",CD113,\" \",CE113)","v":"Kiracı aylık %3 arz bedelinin (0 TL ) ödenmesinden geriye kalan kira bedelinin (0 TL ) %10’u (0 TL ) İl Millî Eğitim Müdürlüğüne, "}]
[null,null,null,null,null,null,null,null,null,null,null,null,null,null,null,null,null,null,null,null,null,null,null,null,null,null,null,null,null,null,null,null,null,null,null,null,null,null,null,null,null,null,null,null,null,null,null,null,null,null,null,null,null,null,null,null,null,null,null,null,null,null,null,null,null,null,null,null,null,null,null,null,null,null,null,null,null,null,null,null,"%10’u",{"$f":"CONCATENATE(\"(\",GİRİŞ!G30,\" TL \",\")\")","v":"(0 TL )"},"İl Millî Eğitim Müdürlüğüne, "]
[null,null,"          Tabii afetler (yangın, deprem, su baskını vs.), bulaşıcı hastalık, salgın gibi olayların çıkması ve benzeri hâller gibi mücbir sebep durumlarında eğitim ve öğretime ara verilen günlere tekabül eden kira tutarı o ayın kira bedelinden düşülerek ödeme yapılır. \n          Mücbir sebepler dışında sözleşme süresi içerisinde aylık kira bedelini iki defa üst üste ödemeyen kiracının sözleşmesi birlikçe tek taraflı olarak feshedilir. Bu durumda, Birliğin alacakları, kesin teminat tutarından mahsup edilir varsa kalan tutar kiracıya iade edilir. Kiracı, bu işlemden dolayı hiçbir hak talep edemez.\n           Süresinde ödenmeyen işletme bedeline 21/7/1953 tarihli ve 6183 sayılı Amme Alacaklarının Tahsil Usulü Hakkında Kanunun 51 inci maddesi gereğince belirlenen oranda gecikme zammı uygulanır.",null,null,null,null,null,null,null,null,null,null,null,null,null,null,null,null,null,null,null,null,null,null,null,null,null,null,null,null,null,null,null,null,null,null,null,null,null,null,null,null,null,null,null,null,null,null,null,null,null,null,null,null,null,null,null,null,null,null,null,null,null,null,null,null,null,null,null,null,null,null,null,null,null,null,null,null,null,"%10’u",{"$f":"CONCATENATE(\"(\",GİRİŞ!G31,\" TL \",\")\")","v":"(0 TL )"},"İlçe Millî Eğitim Müdürlüğüne, "]
[null,null,null,null,null,null,null,null,null,null,null,null,null,null,null,null,null,null,null,null,null,null,null,null,null,null,null,null,null,null,null,null,null,null,null,null,null,null,null,null,null,null,null,null,null,null,null,null,null,null,null,null,null,null,null,null,null,null,null,null,null,null,null,null,null,null,null,null,null,null,null,null,null,null,null,null,null,null,null,null,"%80’i de",{"$f":"CONCATENATE(\"(\",GİRİŞ!G33,\" TL \",\")\")","v":"(0 TL )"},"birliğin göstereceği hesaplara ilgili ayın 5-15 tarihleri arasında yatırarak dekontlarını birliğe/okul müdürlüğüne teslim edecektir. "]
[]
[]
[]
[]
[]
[]
[]
[null,null,null,null,null,null,null,null,null,null,null,null,null,null,null,null,null,null,null,null,null,null,null,null,null,null,null,null,null,null,null,null,null,null,null,null,null,null,null,null,null,null,null,null,null,null,null,null,null,null,null,null,null,null,null,null,null,null,null,null,null,null,null,null,null,null,null,null,null,null,null,null,null,null,null,null,null,null,null,null,"MADDE 8- Kesin teminat tutarı, bir yıllık kira bedelinin %6’sı oranında olup"]
[null,null,"Kesin teminat ve iade şekli",null,null,null,null,null,null,null,null,null,null,null,null,null,null,null,null,null,null,null,null,null,null,null,null,null,null,null,null,null,null,null,null,null,null,null,null,null,null,null,null,null,null,null,null,null,null,null,null,null,null,null,null,null,null,null,null,null,null,null,null,null,null,null,null,null,null,null,null,null,null,null,null,null,null,null,null,null,{"$f":"CONCATENATE(GİRİŞ!G29,\" TL \")","v":"0 TL "}]
[null,null,{"$f":"CONCATENATE(CC123,\" \",CC124,\" \",CC125)","v":"MADDE 8- Kesin teminat tutarı, bir yıllık kira bedelinin %6’sı oranında olup 0 TL  dir. Kesin teminat sözleşme bitiminde, birliğin herhangi bir alacağının kalmaması hâlinde kiracıya iade edilir."},null,null,null,null,null,null,null,null,null,null,null,null,null,null,null,null,null,null,null,null,null,null,null,null,null,null,null,null,null,null,null,null,null,null,null,null,null,null,null,null,null,null,null,null,null,null,null,null,null,null,null,null,null,null,null,null,null,null,null,null,null,null,null,null,null,null,null,null,null,null,null,null,null,null,null,null,null,"dir. Kesin teminat sözleşme bitiminde, birliğin herhangi bir alacağının kalmaması hâlinde kiracıya iade edilir."]
[]
[]
[null,null,"Genel hükümler"]
[null,null,"MADDE 9- Kantin bizzat kiracı tarafından çalıştırılacaktır. Kantin başkası tarafından çalıştırılamaz, resmî veya gayri resmî devir ve temlik yapılamaz.\n          Kiracının ölümü hâlinde; varislerin noterden alınmış ortak kararıyla, bunlardan birisinin ihaleye katılma şartlarını taşıması, bir başka kantin işletmemesi, sözleşme yükümlülüklerini devam ettirmeyi kabul etmesi kaydıyla birlik yönetimi sözleşmeyi devam ettirebilir.\n          Zorunlu askerlik görevi veya iş göremeyecek derecede ağır hastalık sebebiyle kiracının geçici olarak işinin başında bulunamaması hâlinde, şahsi sorumluluğu devam etmek kaydıyla, askerlik görevinin veya iş göremezlik ağır hastalık bitimine kadar noter vekâleti ile vekil tayin eder. Vekil tayin edilen, yerine vekâlet edilenin görev ve sorumluluklarını yerine getirmekle sorumludur. \n          Kantinler, bu şartların dışında hiçbir şekilde devir, temlik edilemez, başkasına kiraya verilemez ve başkası tarafından çalıştırılamaz."]
[]
[]
[]
[]
[]
[]
[]
[]
[]
[]
[null,null,"MADDE 10- Kantinin işletilmesinde 6/12/1984 tarihli ve 3100 sayılı Katma Değer Vergisi Mükelleflerinin Ödeme Kaydedici Cihazları Kullanmaları Mecburiyeti Hakkında Kanun gereğince ödeme kaydedici cihaz (yazar kasa) kullanılır. Ödeme kaydedici cihazın kullanılamayacağı durumlarda, 4/1/1961 tarihli ve 213 sayılı Vergi Usul Kanununda belirtilen fatura veya perakende satış fişi kesilir.\n\nMADDE 11-Sözleşme konusu kantin ve benzeri yerlerin elektrik, su, doğal gaz, ısıtma gideri, okulun sayaçlarından ayrı ise tahakkuk eden fatura bedelleri ilgili tahsilât müdürlüklerine, okulun sayaçlarıyla aynı ise idare tarafından tespit edilecek miktar tahakkuk dönemlerinde Defterdarlık/Mal Müdürlüğü/İl Özel İdaresine ödenmek üzere kiracı tarafından okul yönetimine ödenir. \nKantin ve benzeri yerlerin elektrik, su ve doğalgaz gibi tesisatın ilk işlem giderleri birlikçe yerine getirilir, abonman, kullanım ve tamir giderleri ise kiracı tarafından karşılanır.\n\nMADDE 12-İşletme hakkı verilen kantinin bulunduğu yer, idarece mahallinde tanzim edilecek tutanakla işleticiye teslim edilir. Tutanakla teslim edilen yerdeki kapı, pencere, dolap, lavabo gibi levazımın tam ve sağlam olup olmadığı, işletme hakkı verilen taşınmaz içerisindeki malzemenin çeşit ve değerleri itibarıyla ayrı ayrı belirtilerek teslim tutanağı düzenlenir. Bu tutanak birlik/okul yönetimi yetkilileri ile işletme hakkı verilen kiracı tarafından imzalanır. \n\nMADDE 13- Kantin ve benzeri yerin işletme hakkı sona erdiğinde, kiracı söz konusu kiraladığı yeri kullanımına bırakılan malzemelerle birlikte birlik, okul/kurum yönetimine bir tutanakla teslim eder. "]
[]
[]
[]
[]
[]
[]
[]
[]
[]
[]
[]
[]
[]
[]
[]
[]
[]
[]
[]
[null,"Sy.2/6",null,null,null,null,null,null,null,null,null,null,null,null,null,null,null,null,null,null,null,null,null,null,null,null,null,null,null,null,null,null,null,null,null,null,null,null,null,null,null,null,null,null,null,null,null,null,null,null,null,null,{"$f":"GİRİŞ!F$6","v":0}]
[]
[]
[]
[null,null,"\nMADDE 14- Kiracı; temizlik ve sağlık koşullarına uygun faaliyette bulunmak zorundadır. İşletmeci gıda maddelerini hijyen güvenliğinin sağlanması için kırtasiye, temizlik ve benzeri maddeleri diğer maddelerden ayrı yerlerde satışa sunar. Ayrıca sabotaj ve yangın gibi tehlikelere karşı her türlü tedbirleri alır. Kiracıdan kaynaklanan tedbirsizlik, ihmal ve kusur gibi nedenlere bağlı meydana gelecek zarar ziyanı tazmin etmekle yükümlüdür.\nFiziki mekânı uygun olan kantinlerde gıda ve hijyen güvenliğinin sağlanması için Türk Standartları Enstitüsü’nün (TSE) yayımladığı 13275,13284 ve benzeri diğer standart kriterlerine uyulur.\n\nMADDE 15 - Sözleşme süresi içinde;\na) Kiracının 26/9/2004 tarihli ve 5237 sayılı Türk Ceza Kanununun 53 üncü maddesinde belirtilen süreler geçmiş olsa bile; kasten işlenen bir suçtan dolayı bir yıl veya daha fazla süreyle hapis cezasına ya da affa uğramış olsa bile devletin güvenliğine karşı suçlar, Anayasal düzene ve bu düzenin işleyişine karşı suçlar, millî savunmaya karşı suçlar, devlet sırlarına karşı suçlar ve casusluk, zimmet, irtikâp, rüşvet, hırsızlık, dolandırıcılık, sahtecilik, güveni kötüye kullanma, hileli iflas, ihaleye fesat karıştırma, edimin ifasına fesat karıştırma, suçtan kaynaklanan malvarlığı değerlerini aklama veya kaçakçılık ve aynı Kanunun ‘Cinsel Dokunulmazlığa Karşı Suçlar’ başlıklı İkinci Kısım Altıncı Bölümünde düzenlen maddelerde yer alan suçlardan birinden mahkûm olması, \nb) İşletme hakkı verilen yerde, işletmecinin ve yanında çalışanların; devletin güvenliğine aykırı, eğitim öğretim ortamını bozan davranışları, genel ahlaka aykırı görsel, yazılı yayınlar vb. malzemeyi bulundurduklarının tespiti halinde, birlik yönetimi kiracının sözleşmesini tek taraflı fesheder. Bu işlemden dolayı kiracı hiçbir hak talep edemez.\n\nMADDE 16-Kiracı, ilgili bakanlık/bakanlıkların kantin ve benzeri yerler ile buralarda bulundurulacak yiyecek ve içecek ve benzeri diğer hususlara ilişkin olarak yayımlanan genelge ve diğer düzenlemelere uymak zorundadır. \n\nMADDE 17- İşletme hakkı verilen yerde hiç bir şekilde “bira” dâhil alkollü içki, tütün ve tütün mamulleri ile enerji içecekleri bulundurulamaz ve satışı yapılamaz. Kantin ve benzeri yerlerde gıda kodeksine uygun öğrencinin ruh ve beden sağlığına faydalı gıda ve içeceklerin bulundurulması zorunludur. \n\nMADDE 18- İşletilen yerin; sözleşme hükümlerine aykırı işletilmesi halinde Bakanlıkça ihtiyaç duyulması halinde tebligatı müteakip on beş gün içinde bu yerlerin tahliyesi sağlanır.\n\nMADDE 19-Kantinin işletilmesinde mesleki ve teknik eğitim diploması, sertifika ile kurs bitirme, ustalık, kalfalık ve işyeri açma belgelerinden en az birine sahip öğrenci psikolojisine uyum sağlayabilecek kişiler istihdam edilir. Çalışan kişilerin bu özelliklere haiz olmaması hâlinde birlik ve okul yönetimince gerekli tedbirler alınır. \n\nMADDE 20- Kiracı, 07/6/2005 tarihli ve 5362 sayılı Esnaf ve Sanatkârlar Meslek Kuruluşları Kanununun 62 nci maddesine göre belirlenen fiyat tarifesini, 23/2/1995 tarihli ve 4077 sayılı Tüketicinin Korunması Hakkında Kanun ve uygulaması ile ilgili yönetmelik gereği öğrencilerin rahatlıkla görebileceği yerlere asar.\n\nMADDE 21– Sözleşme süresi içerisinde okulun fiziki değişikliğe uğraması veya bir başka adresteki okulda faaliyetine devam ettirilmesi durumunda, yeni okulda işletmeci yoksa faaliyetine burada da devam edecektir. Güçlendirme, yangın, onarım ve benzeri nedenlerle geçici olarak eğitim ve öğretime ara verilmesi durumunda kiracının çalışma süresi ve kirası dondurulur. Okulun faaliyete geçmesini müteakip dondurulan süre sözleşme süresine eklenir."]
[]
[]
[]
[]
[]
[]
[]
[]
[]
[]
[]
[]
[]
[]
[]
[]
[]
[]
[]
[]
[]
[]
[]
[]
[]
[]
[]
[]
[]
[]
[]
[]
[]
[]
[]
[]
[]
[]
[]
[]
[]
[]
[]
[]
[]
[]
[]
[]
[]
[null,"Sy.3/6",null,null,null,null,null,null,null,null,null,null,null,null,null,null,null,null,null,null,null,null,null,null,null,null,null,null,null,null,null,null,null,null,null,null,null,null,null,null,null,null,null,null,null,null,null,null,null,null,null,null,{"$f":"GİRİŞ!F$6","v":0}]
[]
[]
[]
[]
[null,null,"Cezai işlemler"]
[null,null,"MADDE 22- Kira süresinin sona ermesi veya sözleşmenin feshinden sonra, kiracı taşınmazı idareye teslim etmediği takdirde, her geçen gün için kiracı işletme bedelinden ayrı olarak aylık kira bedelinin %3’ü oranında ayrıca ceza öder. Ceza ödenmesi taşınmazın kullanılmasına ve tahliyesinin geciktirilmesine neden olamaz."]
[null,null,null,null,null,null,null,null,null,null,null,null,null,null,null,null,null,null,null,null,null,null,null,null,null,null,null,null,null,null,null,null,null,null,null,null,null,null,null,null,null,null,null,null,null,null,null,null,null,null,null,null,null,null,null,null,null,null,null,null,null,null,null,null,null,null,null,null,null,null,null,null,null,null,null,null,null,null,null,null,"          Kiracının fesih talebinde bulunması, kira dönemi sona ermeden faaliyetini durdurması, kiralanan yeri amacı dışında kullanması, taahhüdünü sözleşme hükümlerine uygun olarak yerine getirmemesi veya izin ve ruhsatların her ne sebeple olursa olsun iptal edilmesi hallerinde kira sözleşmesi, birlik tarafından feshedilerek ayrıca, protesto çekmeye ve hüküm almaya gerek kalmaksızın 2886 sayılı Devlet İhale Kanununun 62 nci maddesine göre kesin teminatı gelir kaydedilir ve cari kiralama dönemine ilişkin "]
[]
[null,null,null,null,null,null,null,null,null,null,null,null,null,null,null,null,null,null,null,null,null,null,null,null,null,null,null,null,null,null,null,null,null,null,null,null,null,null,null,null,null,null,null,null,null,null,null,null,null,null,null,null,null,null,null,null,null,null,null,null,null,null,null,null,null,null,null,null,null,null,null,null,null,null,null,null,null,null,null,null,{"$f":"CONCATENATE(\"( \",GİRİŞ!F24,\" aylık \",\")\")","v":"( 9 aylık )"},"kira bedeli tazminat olarak tahsil edilir. "]
[null,null,{"$f":"CONCATENATE(CC221,\" \",CC223,\" \",CD223)","v":"          Kiracının fesih talebinde bulunması, kira dönemi sona ermeden faaliyetini durdurması, kiralanan yeri amacı dışında kullanması, taahhüdünü sözleşme hükümlerine uygun olarak yerine getirmemesi veya izin ve ruhsatların her ne sebeple olursa olsun iptal edilmesi hallerinde kira sözleşmesi, birlik tarafından feshedilerek ayrıca, protesto çekmeye ve hüküm almaya gerek kalmaksızın 2886 sayılı Devlet İhale Kanununun 62 nci maddesine göre kesin teminatı gelir kaydedilir ve cari kiralama dönemine ilişkin  ( 9 aylık ) kira bedeli tazminat olarak tahsil edilir. "}]
[]
[]
[]
[]
[]
[]
[null,null,"MADDE 23- Bu sözleşmede düzenlenmeyen hususlarda bu Yönetmelik hükümleri uygulanır."]
[]
[null,null,"Anlaşmazlıkların çözümü"]
[null,null,"MADDE 24- Sözleşme süresinin bitiminde, kiracı kiralanan yeri rızasıyla tahliye etmediği takdirde,  2886 sayılı Kanun hükümleri gereğince yasal yollara başvurulmak üzere, okul yönetimince mülkiyet durumuna göre İl Muhakemat Müdürlüğü/İl Özel İdaresine bildirilir."]
[]
[]
[null,null,{"$f":"CONCATENATE(CC237,\" \",GİRİŞ!F2,\" \",GİRİŞ!J2,\" \",SÖZLEŞME!CC238)","v":"          Bu sözleşmeden doğan ihtilafların hâl mercii   İlçe Mahkeme ve İcra Daireleridir."},null,null,null,null,null,null,null,null,null,null,null,null,null,null,null,null,null,null,null,null,null,null,null,null,null,null,null,null,null,null,null,null,null,null,null,null,null,null,null,null,null,null,null,null,null,null,null,null,null,null,null,null,null,null,null,null,null,null,null,null,null,null,null,null,null,null,null,null,null,null,null,null,null,null,null,null,null,"          Bu sözleşmeden doğan ihtilafların hâl mercii"]
[null,null,null,null,null,null,null,null,null,null,null,null,null,null,null,null,null,null,null,null,null,null,null,null,null,null,null,null,null,null,null,null,null,null,null,null,null,null,null,null,null,null,null,null,null,null,null,null,null,null,null,null,null,null,null,null,null,null,null,null,null,null,null,null,null,null,null,null,null,null,null,null,null,null,null,null,null,null,null,null,"İlçe Mahkeme ve İcra Daireleridir."]
[null,null,"Yürürlük"]
[null,null,{"$f":"CONCATENATE(CC240,\" \",GİRİŞ!F19,\" \",SÖZLEŞME!CC241,\" \",GİRİŞ!F18,\" \",SÖZLEŞME!CC242)","v":"MADDE 25- Yirmi beş maddeden oluşan bu sözleşme, taraflarca okunup anlaşılarak  tarihinde yürürlüğe girmek üzere iki nüsha halinde düzenlenerek  tarihinde imzalanmıştır."},null,null,null,null,null,null,null,null,null,null,null,null,null,null,null,null,null,null,null,null,null,null,null,null,null,null,null,null,null,null,null,null,null,null,null,null,null,null,null,null,null,null,null,null,null,null,null,null,null,null,null,null,null,null,null,null,null,null,null,null,null,null,null,null,null,null,null,null,null,null,null,null,null,null,null,null,null,"MADDE 25- Yirmi beş maddeden oluşan bu sözleşme, taraflarca okunup anlaşılarak"]
[null,null,null,null,null,null,null,null,null,null,null,null,null,null,null,null,null,null,null,null,null,null,null,null,null,null,null,null,null,null,null,null,null,null,null,null,null,null,null,null,null,null,null,null,null,null,null,null,null,null,null,null,null,null,null,null,null,null,null,null,null,null,null,null,null,null,null,null,null,null,null,null,null,null,null,null,null,null,null,null,"tarihinde yürürlüğe girmek üzere iki nüsha halinde düzenlenerek"]
[null,null,null,null,null,null,null,null,null,null,null,null,null,null,null,null,null,null,null,null,null,null,null,null,null,null,null,null,null,null,null,null,null,null,null,null,null,null,null,null,null,null,null,null,null,null,null,null,null,null,null,null,null,null,null,null,null,null,null,null,null,null,null,null,null,null,null,null,null,null,null,null,null,null,null,null,null,null,null,null,"tarihinde imzalanmıştır."]
[null,null,"ÖZEL ŞARTLAR"]
[null,null,"MADDE 1- Kiracının değişmesi durumunda; kantine kiracı tarafından yapılan tüm tesis masrafları, kullanım süresi ve amortisman da dikkate alınarak okul, birlik, varsa ilgili oda temsilcisinin/kuruluşun ve gerektiğinde bilirkişi katılımıyla oluşturulan komisyonca takdir edilen meblağ, eski kiracıya yeni kiracı tarafından ödenir. Bu husus ihale ilanında ve şartnamede belirtilir.\nMADDE 2- Bu sözleşmeyi imzalayan kantin işletmecisi(kiracı) kira bedeli ödemelerini Kantin Kira Ödeme Şartnamesine ve ödeme tablosuna uymakla yükümlüdür. \nMADDE 3- Öğrencilerin ihtiyaçlarına cevap verebilecek sayıda, hijyen, sağlık koşullarına uygun ve taze simit satılması.\nMADDE 4-  Kullanılan et ve et ürünlerinin, hijyen ve sağlık kurallarına uygun olması.\nMADDE 5- Öğrencilerin ihtiyacı olan süt ve süt ürünleri ile meyve ve meyve suyunun bulundurulması, satılan gıda maddelerinin son kullanma tarihlerine dikkat edilmesi.\nMADDE 6- Öğrenciler ile ilişkilerde düzeyli olunması, öğrencilere bağırılmaması ve öğrenci isteklerinin ciddiye alınması.\t\nMADDE 7- Kantin alanının ve çevresinin temizliğine özen gösterilmesi.\nMADDE 8- Kantin hizmet alanının yönetmeliklere uygun hale getirilmesi. Kantin denetleme formunda belirtilen şartlara dikkat edilmesi.\nMADDE 9-  Tost vs. yapılırken, servis ve satış yapılırken ellere eldiven, başa bone takılması. \nMADDE 10-  Saç, sakal traşı ile kılık kıyafete özen gösterilmesi.\nMADDE 11- Türkiye Cumhuriyeti Devleti içerisinde yapılanan terör örgütlerine doğrudan ve dolaylı destek olan kişiler ve kurumlarla çalışılmaması, finansal destek sağlanmaması, doğrudan ya da dolaylı yardımda bulunulmaması.\nMADDE 12- Elektrik Parakende Satış Sözleşmesi ve su aboneliği yüklenici tarafından yapılacaktır \nMADDE 13-Milli Eğitim Bakanlığının Eğitim Kurumlarında Hijyen şartlarının Geliştirilmesi ve Enfeksiyon Önleme Kontrol Kılavuzu madde 7/8 Kantin ve Yemekhane bölümü şartlarına uygun olunması."]
[]
[]
[]
[]
[]
[]
[]
[]
[]
[]
[]
[]
[]
[]
[]
[]
[]
[]
[]
[]
[]
[]
[]
[]
[]
[null,"Sy.4/6",null,null,null,null,null,null,null,null,null,null,null,null,null,null,null,null,null,null,null,null,null,null,null,null,null,null,null,null,null,null,null,null,null,null,null,null,null,null,null,null,null,null,null,null,null,null,null,null,null,null,{"$f":"GİRİŞ!F$6","v":0}]
[]
[]
[]
[null,null,null,null,null,null,null,null,null,null,null,null,null,null,null,null,null,null,null,null,null,null,null,null,null,null,null,null,null,null,null,null,null,null,null,null,null,null,null,null,null,null,null,null,null,null,null,null,null,null,null,null,null,null,null,null,null,null,null,null,null,null,null,null,null,null,null,null,null,null,null,null,null,null,null,null,null,null,null,null,"MADDE 14- Kiracı kira süresi sonunda işletme hakkı verilen yeri herhangi bir tebligat yapmaya gerek kalmaksızın teslim aldığı şekilde İdareye teslim etmek zorundadır. Kiracı işletme hakkı verilen yeri teslim etmediği takdirde 2886 sayılı Kanunun 75 inci maddesi uyarınca kantinlerden tahliye edilecektir. Kira Süresi "]
[null,null,{"$f":"CONCATENATE(CC274,GİRİŞ!F19,SÖZLEŞME!CC275,GİRİŞ!F20,SÖZLEŞME!CC276,GİRİŞ!F8,SÖZLEŞME!CC277)","v":"MADDE 14- Kiracı kira süresi sonunda işletme hakkı verilen yeri herhangi bir tebligat yapmaya gerek kalmaksızın teslim aldığı şekilde İdareye teslim etmek zorundadır. Kiracı işletme hakkı verilen yeri teslim etmediği takdirde 2886 sayılı Kanunun 75 inci maddesi uyarınca kantinlerden tahliye edilecektir. Kira Süresi  'da başlayıp  ’de sona erecektir. Kira süresinin sonunda kira sözleşmesinin uzatılıp uzatılmayacağına   Okul Aile Birliği Yönetim Kurulu karar verecektir."},null,null,null,null,null,null,null,null,null,null,null,null,null,null,null,null,null,null,null,null,null,null,null,null,null,null,null,null,null,null,null,null,null,null,null,null,null,null,null,null,null,null,null,null,null,null,null,null,null,null,null,null,null,null,null,null,null,null,null,null,null,null,null,null,null,null,null,null,null,null,null,null,null,null,null,null,null," 'da başlayıp "]
[null,null,null,null,null,null,null,null,null,null,null,null,null,null,null,null,null,null,null,null,null,null,null,null,null,null,null,null,null,null,null,null,null,null,null,null,null,null,null,null,null,null,null,null,null,null,null,null,null,null,null,null,null,null,null,null,null,null,null,null,null,null,null,null,null,null,null,null,null,null,null,null,null,null,null,null,null,null,null,null," ’de sona erecektir. Kira süresinin sonunda kira sözleşmesinin uzatılıp uzatılmayacağına "]
[null,null,null,null,null,null,null,null,null,null,null,null,null,null,null,null,null,null,null,null,null,null,null,null,null,null,null,null,null,null,null,null,null,null,null,null,null,null,null,null,null,null,null,null,null,null,null,null,null,null,null,null,null,null,null,null,null,null,null,null,null,null,null,null,null,null,null,null,null,null,null,null,null,null,null,null,null,null,null,null," Okul Aile Birliği Yönetim Kurulu karar verecektir."]
[]
[]
[]
[null,null,"      Not : (25)Yirmibeş genel ve (14) ondört özel şart ile (6) altı maddelik ek ödeme şartnamesi olmak üzere toplam (45) kırkbeş maddeden oluşan işbu sözleşme aşağıdaki imzalarla yürürlük kazanır.",null,null,null,null,null,null,null,null,null,null,null,null,null,null,null,null,null,null,null,null,null,null,null,null,null,null,null,null,null,null,null,null,null,null,null,null,null,null,null,null,null,null,null,null,null,null,null,null,null,null,null,null,null,null,null,null,null,null,null,null,"    "]
[]
[]
[]
[]
[]
[]
[null,null,{"$f":"GİRİŞ!M4","v":0},null,null,null,null,null,null,null,null,null,null,null,null,null,null,null,{"$f":"GİRİŞ!W4","v":0},null,null,null,null,null,null,null,null,null,null,null,null,null,null,{"$f":"GİRİŞ!AG4","v":0}]
[null,null,"Birlik Başkanı",null,null,null,null,null,null,null,null,null,null,null,null,null,null,null,"Yüklenici",null,null,null,null,null,null,null,null,null,null,null,null,null,null,"Esnaf Odası Başkanı"]
[]
[]
[]
[]
[]
[]
[]
[]
[]
[]
[]
[]
[]
[]
[]
[]
[]
[]
[]
[]
[]
[]
[]
[]
[]
[]
[]
[]
[]
[]
[]
[]
[]
[]
[null,"Sy.5/6",null,null,null,null,null,null,null,null,null,null,null,null,null,null,null,null,null,null,null,null,null,null,null,null,null,null,null,null,null,null,null,null,null,null,null,null,null,null,null,null,null,null,null,null,null,null,null,null,null,null,{"$f":"GİRİŞ!F$6","v":0}]
[]
[]
[]
[]
[null,null,{"$f":"CONCATENATE(GİRİŞ!F2,\" / \",GİRİŞ!J2,\" \",SÖZLEŞME!CC329,GİRİŞ!F8,SÖZLEŞME!CC330)","v":" /  İLÇESİ  (   )"},null,null,null,null,null,null,null,null,null,null,null,null,null,null,null,null,null,null,null,null,null,null,null,null,null,null,null,null,null,null,null,null,null,null,null,null,null,null,null,null,null,null,null,null,null,null,null,null,null,null,null,null,null,null,null,null,null,null,null,null,null,null,null,null,null,null,null,null,null,null,null,null,null,null,null,null,null,"İLÇESİ  ( "]
[null,null,"KANTİN KİRA SÖZLEŞMESİ",null,null,null,null,null,null,null,null,null,null,null,null,null,null,null,null,null,null,null,null,null,null,null,null,null,null,null,null,null,null,null,null,null,null,null,null,null,null,null,null,null,null,null,null,null,null,null,null,null,null,null,null,null,null,null,null,null,null,null,null,null,null,null,null,null,null,null,null,null,null,null,null,null,null,null,null,null," )"]
[null,null,"*************************************************************************************"]
[null,"1.",null,"Bu sözleşmeyi imzalayan Kantin işletme hakkı verilen (kiralayan)  yüklenici (kiracı) “İŞLETME (KİRALAMA) SÖZLEŞMESİ GENEL ŞARTLAR ve KANTİN KİRA ÖDEME ŞARTNAMESİNE” aynen uyacağını taahhüt eder."]
[]
[]
[null,"2.",null,"Kantin kirasının süresi bir yıldır. Süre sonunda kirası sözleşmenin 6. madde hükümlerine göre yeniden tespit edilerek mevcut kiracıya yeni sözleşme düzenlenecektir. Sözleşme hakkı sona erdiğinde, yeni sözleşme düzenlenmeyen Yüklenici (kiracı)yeni yıl için hiçbir hak iddia etmeden kantini tahliye eder."]
[null,null,null,null,null,null,null,null,null,null,null,null,null,null,null,null,null,null,null,null,null,null,null,null,null,null,null,null,null,null,null,null,null,null,null,null,null,null,null,null,null,null,null,null,null,null,null,null,null,null,null,null,null,null,null,null,null,null,null,null,null,null,null,null,null,null,null,null,null,null,null,null,null,null,null,null,null,null,null,null,"Kiranın başlangıç tarihi; "]
[null,null,null,null,null,null,null,null,null,null,null,null,null,null,null,null,null,null,null,null,null,null,null,null,null,null,null,null,null,null,null,null,null,null,null,null,null,null,null,null,null,null,null,null,null,null,null,null,null,null,null,null,null,null,null,null,null,null,null,null,null,null,null,null,null,null,null,null,null,null,null,null,null,null,null,null,null,null,null,null," ve bitiş tarihi; "]
[null,"3.",null,{"$f":"CONCATENATE(CC336,GİRİŞ!F19,SÖZLEŞME!CC337,GİRİŞ!F20,SÖZLEŞME!CC338)","v":"Kiranın başlangıç tarihi;  ve bitiş tarihi;  olarak taraflarca kabul edilir."},null,null,null,null,null,null,null,null,null,null,null,null,null,null,null,null,null,null,null,null,null,null,null,null,null,null,null,null,null,null,null,null,null,null,null,null,null,null,null,null,null,null,null,null,null,null,null,null,null,null,null,null,null,null,null,null,null,null,null,null,null,null,null,null,null,null,null,null,null,null,null,null,null,null,null,null," olarak taraflarca kabul edilir."]
[null,"4.",null,{"$f":"CONCATENATE(CC340,GİRİŞ!G24,SÖZLEŞME!CD340,\" \",CE340,CF340,CG340)","v":"Kira bedeli (1 Yıllık) 0 TL’dir. (   Lira )"}]
[null,"5.",null,{"$f":"CONCATENATE(CC342,CD342,CE342,CC343,CD343,CE343,CC344)","v":"Yüklenici yıllık kira bedelinin%3 arz bedelini  0 TL peşin olarak veya üçer aylık dönemler itibarıyla dönemi takip eden ayın onuncu günü sonuna kadar defterdarlık/mal müdürlüğü hesabına ödeyecek ve geri kalan 0 TL kira sözleşmesi süresi içerisinde aşağıda belirtilen hesap numarasına ilgili ayın 05-15 tarihleri arasında aşağıda belirtilen ödeme tablosuna göre il/ilçe ve okul aile birliği hesabına ödemesi yapılacaktır."},null,null,null,null,null,null,null,null,null,null,null,null,null,null,null,null,null,null,null,null,null,null,null,null,null,null,null,null,null,null,null,null,null,null,null,null,null,null,null,null,null,null,null,null,null,null,null,null,null,null,null,null,null,null,null,null,null,null,null,null,null,null,null,null,null,null,null,null,null,null,null,null,null,null,null,null,"Kira bedeli (1 Yıllık) "," TL’dir. ( ",{"$f":"Sayıyı_Yazıya_Çevir(GİRİŞ!G24)","v":""}," Lira"," )"]
[]
[null,null,null,null,null,null,null,null,null,null,null,null,null,null,null,null,null,null,null,null,null,null,null,null,null,null,null,null,null,null,null,null,null,null,null,null,null,null,null,null,null,null,null,null,null,null,null,null,null,null,null,null,null,null,null,null,null,null,null,null,null,null,null,null,null,null,null,null,null,null,null,null,null,null,null,null,null,null,null,null,"Yüklenici yıllık kira bedelinin%3 arz bedelini  ",{"$f":"GİRİŞ!G25","v":0}," TL "]
[null,null,null,null,null,null,null,null,null,null,null,null,null,null,null,null,null,null,null,null,null,null,null,null,null,null,null,null,null,null,null,null,null,null,null,null,null,null,null,null,null,null,null,null,null,null,null,null,null,null,null,null,null,null,null,null,null,null,null,null,null,null,null,null,null,null,null,null,null,null,null,null,null,null,null,null,null,null,null,null,"peşin olarak veya üçer aylık dönemler itibarıyla dönemi takip eden ayın onuncu günü sonuna kadar defterdarlık/mal müdürlüğü hesabına ödeyecek ve geri kalan ",{"$f":"GİRİŞ!G27","v":0}," TL "]
[null,null,null,null,null,null,null,null,null,null,null,null,null,null,null,null,null,null,null,null,null,null,null,null,null,null,null,null,null,null,null,null,null,null,null,null,null,null,null,null,null,null,null,null,null,null,null,null,null,null,null,null,null,null,null,null,null,null,null,null,null,null,null,null,null,null,null,null,null,null,null,null,null,null,null,null,null,null,null,null,"kira sözleşmesi süresi içerisinde aşağıda belirtilen hesap numarasına ilgili ayın 05-15 tarihleri arasında aşağıda belirtilen ödeme tablosuna göre il/ilçe ve okul aile birliği hesabına ödemesi yapılacaktır."]
[null,null,null,{"$f":"CONCATENATE(CC346,CD346,CE346,CF346,\"TL\",CC347,CD347,CE347,CF347,CC349)","v":"İl ve İlçe Payları % 20 ( 0 ) TL İlçe Milli Eğitim Müdürlüğünün Ziraat Bankası ÇAL Şubesindeki 0 Nolu hesaba peşin veya 9 taksitte aşağıda belirtilen aylarda 05-15 tarihleri arasında ödenecektir."}]
[null,null,null,null,null,null,null,null,null,null,null,null,null,null,null,null,null,null,null,null,null,null,null,null,null,null,null,null,null,null,null,null,null,null,null,null,null,null,null,null,null,null,null,null,null,null,null,null,null,null,null,null,null,null,null,null,null,null,null,null,null,null,null,null,null,null,null,null,null,null,null,null,null,null,null,null,null,null,null,null,"İl ve İlçe Payları % 20 ","( ",{"$f":"GİRİŞ!J30","v":0}," ) "]
[null,null,null,null,null,null,null,null,null,null,null,null,null,null,null,null,null,null,null,null,null,null,null,null,null,null,null,null,null,null,null,null,null,null,null,null,null,null,null,null,null,null,null,null,null,null,null,null,null,null,null,null,null,null,null,null,null,null,null,null,null,null,null,null,null,null,null,null,null,null,null,null,null,null,null,null,null,null,null,null," İlçe Milli Eğitim Müdürlüğünün Ziraat Bankası ÇAL Şubesindeki ",{"$f":"GİRİŞ!AE3","v":0}," Nolu hesaba peşin veya ",{"$f":"GİRİŞ!F24","v":9}]
[null,null,null,"SN",null,null,null,"AY (Dönem)",null,null,null,null,null,null,null,"YIL",null,null,null,null,null,"ÖDEME ARALIĞI"]
[null,null,null,{"$f":"IF(H349=\"\",\"\",1)","v":1},null,null,null,"01-30 Eylül",null,null,null,null,null,null,null,"2026",null,null,null,null,null,"05-15 Eylül",null,null,null,null,null,null,null,null,null,null,null,null,null,null,null,null,null,null,null,null,null,{"$f":"IF(H349=\"\",\"\",GİRİŞ!H$30)","v":0},null,null,null,null,null,null,{"$f":"IF(H349=\"\",\"\",\"TL\")","v":"TL"},null,null,null,null,null,null,null,null,null,null,null,null,null,null,null,null,null,null,null,null,null,null,null,null,null,null,null,null,null," taksitte aşağıda belirtilen aylarda 05-15 tarihleri arasında ödenecektir."]
[null,null,null,{"$f":"IF(H350=\"\",\"\",2)","v":2},null,null,null,"01-31 Ekim",null,null,null,null,null,null,null,"2026",null,null,null,null,null,"05-15 Ekim",null,null,null,null,null,null,null,null,null,null,null,null,null,null,null,null,null,null,null,null,null,{"$f":"IF(H350=\"\",\"\",GİRİŞ!H$30)","v":0},null,null,null,null,null,null,{"$f":"IF(H350=\"\",\"\",\"TL\")","v":"TL"}]
[null,null,null,{"$f":"IF(H351=\"\",\"\",3)","v":3},null,null,null,"01-30 Kasım",null,null,null,null,null,null,null,"2026",null,null,null,null,null,"05-15 Kasım",null,null,null,null,null,null,null,null,null,null,null,null,null,null,null,null,null,null,null,null,null,{"$f":"IF(H351=\"\",\"\",GİRİŞ!H$30)","v":0},null,null,null,null,null,null,"TL"]
[null,null,null,{"$f":"IF(H352=\"\",\"\",4)","v":4},null,null,null,"01-31 Aralık",null,null,null,null,null,null,null,"2026",null,null,null,null,null,"05-15 Aralık",null,null,null,null,null,null,null,null,null,null,null,null,null,null,null,null,null,null,null,null,null,{"$f":"IF(H352=\"\",\"\",GİRİŞ!H$30)","v":0},null,null,null,null,null,null,"TL",null,null,null,null,null,null,null,null,null,null,null,null,null,null,null,null,null,null,null,null,null,null,null,null,null,null,null,null,null,null,null,null,null,null,null,null,null,null,null,null,null,null,null,null,null,null,null,{"$f":"Sayıyı_Yazıya_Çevir(GİRİŞ!X294)","v":""}]
[null,null,null,{"$f":"IF(H353=\"\",\"\",5)","v":5},null,null,null,"01-31 Ocak",null,null,null,null,null,null,null,"2026",null,null,null,null,null,"05-15 Ocak",null,null,null,null,null,null,null,null,null,null,null,null,null,null,null,null,null,null,null,null,null,{"$f":"IF(H353=\"\",\"\",GİRİŞ!H$30)","v":0},null,null,null,null,null,null,"TL"]
[null,null,null,{"$f":"IF(H354=\"\",\"\",6)","v":6},null,null,null,"01-28 Şubat",null,null,null,null,null,null,null,"2026",null,null,null,null,null,"05-15 Şubat",null,null,null,null,null,null,null,null,null,null,null,null,null,null,null,null,null,null,null,null,null,{"$f":"IF(H354=\"\",\"\",GİRİŞ!H$30)","v":0},null,null,null,null,null,null,"TL"]
[null,null,null,{"$f":"IF(H355=\"\",\"\",7)","v":7},null,null,null,"01-31 Mart",null,null,null,null,null,null,null,"2027",null,null,null,null,null,"05-15 Mart",null,null,null,null,null,null,null,null,null,null,null,null,null,null,null,null,null,null,null,null,null,{"$f":"IF(H355=\"\",\"\",GİRİŞ!H$30)","v":0},null,null,null,null,null,null,"TL"]
[null,null,null,{"$f":"IF(H356=\"\",\"\",8)","v":8},null,null,null,"01-30 Nisan",null,null,null,null,null,null,null,"2027",null,null,null,null,null,"05-15 Nisan",null,null,null,null,null,null,null,null,null,null,null,null,null,null,null,null,null,null,null,null,null,{"$f":"IF(H356=\"\",\"\",GİRİŞ!H$30)","v":0},null,null,null,null,null,null,"TL"]
[null,null,null,{"$f":"IF(H357=\"\",\"\",9)","v":9},null,null,null,"01-31 Mayıs",null,null,null,null,null,null,null,"2027",null,null,null,null,null,"05-15 Mayıs",null,null,null,null,null,null,null,null,null,null,null,null,null,null,null,null,null,null,null,null,null,{"$f":"IF(H357=\"\",\"\",GİRİŞ!H$30)","v":0},null,null,null,null,null,null,{"$f":"IF(H357=\"\",\"\",\"TL\")","v":"TL"}]
[null,null,null,{"$f":"IF(H358=\"\",\"\",10)","v":""},null,null,null,null,null,null,null,null,null,null,null,null,null,null,null,null,null,null,null,null,null,null,null,null,null,null,null,null,null,null,null,null,null,null,null,null,null,null,null,{"$f":"IF(H358=\"\",\"\",GİRİŞ!H$30)","v":""},null,null,null,null,null,null,""]
[null,null,null,{"$f":"IF(H359=\"\",\"\",11)","v":""},null,null,null,null,null,null,null,null,null,null,null,null,null,null,null,null,null,null,null,null,null,null,null,null,null,null,null,null,null,null,null,null,null,null,null,null,null,null,null,{"$f":"IF(H359=\"\",\"\",GİRİŞ!H$30)","v":""},null,null,null,null,null,null,""]
[null,null,null,{"$f":"IF(H360=\"\",\"\",12)","v":""},null,null,null,null,null,null,null,null,null,null,null,null,null,null,null,null,null,null,null,null,null,null,null,null,null,null,null,null,null,null,null,null,null,null,null,null,null,null,null,{"$f":"IF(H360=\"\",\"\",GİRİŞ!H$30)","v":""},null,null,null,null,null,null,{"$f":"IF(H360=\"\",\"\",\"TL\")","v":""}]
[null,null,null,"T O P L A M :",null,null,null,null,null,null,null,null,null,null,null,null,null,null,null,null,null,null,null,null,null,null,null,null,null,null,null,null,null,null,null,null,null,null,null,null,null,null,null,{"$f":"SUM(AM349:AX360)","v":0},null,null,null,null,null,null,{"$f":"IF(AR361>0,\"TL\",\"\")","v":""}]
[null,null,"*************************************************************************************"]
[null,null,null,{"$f":"CONCATENATE(CC364,CD364,CE364,CF364,\"TL olan \",CC365,CG365,CD365,CE365,CF365,CE367)","v":"% 80’ i ( 0 ) TL olan   Okul Aile Birliğinin aşağıda belirtilen hesap numarasına ilgili ayın 05-15 tarihleri arasında peşin veya 9 taksitle yatırarak dekontlarını birliğe/okul müdürlüğüne teslim edecektir."}]
[null,null,null,null,null,null,null,null,null,null,null,null,null,null,null,null,null,null,null,null,null,null,null,null,null,null,null,null,null,null,null,null,null,null,null,null,null,null,null,null,null,null,null,null,null,null,null,null,null,null,null,null,null,null,null,null,null,null,null,null,null,null,null,null,null,null,null,null,null,null,null,null,null,null,null,null,null,null,null,null,"% 80’ i ","( ",{"$f":"GİRİŞ!I33","v":0}," ) "]
[null,null,null,null,null,null,null,null,null,null,null,null,null,null,null,null,null,null,null,null,null,null,null,null,null,null,null,null,null,null,null,null,null,null,null,null,null,null,null,null,null,null,null,null,null,null,null,null,null,null,null,null,null,null,null,null,null,null,null,null,null,null,null,null,null,null,null,null,null,null,null,null,null,null,null,null,null,null,null,null,{"$f":"GİRİŞ!F8","v":" "},null,null,{"$f":"GİRİŞ!F24","v":9}," Okul Aile Birliğinin aşağıda belirtilen hesap numarasına ilgili ayın 05-15 tarihleri arasında peşin veya "]
[null,null,null,"SN",null,null,null,"AY (Dönem)",null,null,null,null,null,null,null,"YIL",null,null,null,null,null,"ÖDEME ARALIĞI"]
[null,null,null,{"$f":"IF(H367=\"\",\"\",1)","v":1},null,null,null,{"$f":"IF(H349=\"\",\"\",H349)","v":"01-30 Eylül"},null,null,null,null,null,null,null,{"$f":"IF(P349=\"\",\"\",P349)","v":"2026"},null,null,null,null,null,{"$f":"IF(V349=\"\",\"\",V349)","v":"05-15 Eylül"},null,null,null,null,null,null,null,null,null,null,null,null,null,null,null,null,null,null,null,null,null,{"$f":"IF(H367=\"\",\"\",GİRİŞ!G$33)","v":0},null,null,null,null,null,null,{"$f":"IF(H367=\"\",\"\",\"TL\")","v":"TL"},null,null,null,null,null,null,null,null,null,null,null,null,null,null,null,null,null,null,null,null,null,null,null,null,null,null,null,null,null,null,null," taksitle yatırarak dekontlarını birliğe/okul müdürlüğüne teslim edecektir."]
[null,null,null,{"$f":"IF(H368=\"\",\"\",2)","v":2},null,null,null,{"$f":"IF(H350=\"\",\"\",H350)","v":"01-31 Ekim"},null,null,null,null,null,null,null,{"$f":"IF(P350=\"\",\"\",P350)","v":"2026"},null,null,null,null,null,{"$f":"IF(V350=\"\",\"\",V350)","v":"05-15 Ekim"},null,null,null,null,null,null,null,null,null,null,null,null,null,null,null,null,null,null,null,null,null,{"$f":"IF(H368=\"\",\"\",GİRİŞ!G$33)","v":0},null,null,null,null,null,null,{"$f":"IF(H368=\"\",\"\",\"TL\")","v":"TL"}]
[null,null,null,{"$f":"IF(H369=\"\",\"\",3)","v":3},null,null,null,"01-30 Kasım",null,null,null,null,null,null,null,"2026",null,null,null,null,null,"05-15 Kasım",null,null,null,null,null,null,null,null,null,null,null,null,null,null,null,null,null,null,null,null,null,{"$f":"IF(H369=\"\",\"\",GİRİŞ!G$33)","v":0},null,null,null,null,null,null,"TL"]
[null,null,null,{"$f":"IF(H370=\"\",\"\",4)","v":4},null,null,null,"01-31 Aralık",null,null,null,null,null,null,null,"2026",null,null,null,null,null,"05-15 Aralık",null,null,null,null,null,null,null,null,null,null,null,null,null,null,null,null,null,null,null,null,null,{"$f":"IF(H370=\"\",\"\",GİRİŞ!G$33)","v":0},null,null,null,null,null,null,"TL"]
[null,null,null,{"$f":"IF(H371=\"\",\"\",5)","v":5},null,null,null,"01-31 Ocak",null,null,null,null,null,null,null,"2026",null,null,null,null,null,"05-15 Ocak",null,null,null,null,null,null,null,null,null,null,null,null,null,null,null,null,null,null,null,null,null,{"$f":"IF(H371=\"\",\"\",GİRİŞ!G$33)","v":0},null,null,null,null,null,null,"TL"]
[null,null,null,{"$f":"IF(H372=\"\",\"\",6)","v":6},null,null,null,"01-28 Şubat",null,null,null,null,null,null,null,"2026",null,null,null,null,null,"05-15 Şubat",null,null,null,null,null,null,null,null,null,null,null,null,null,null,null,null,null,null,null,null,null,{"$f":"IF(H372=\"\",\"\",GİRİŞ!G$33)","v":0},null,null,null,null,null,null,"TL"]
[null,null,null,{"$f":"IF(H373=\"\",\"\",7)","v":7},null,null,null,"01-31 Mart",null,null,null,null,null,null,null,"2027",null,null,null,null,null,"05-15 Mart",null,null,null,null,null,null,null,null,null,null,null,null,null,null,null,null,null,null,null,null,null,{"$f":"IF(H373=\"\",\"\",GİRİŞ!G$33)","v":0},null,null,null,null,null,null,"TL"]
[null,null,null,{"$f":"IF(H374=\"\",\"\",8)","v":8},null,null,null,"01-30 Nisan",null,null,null,null,null,null,null,"2027",null,null,null,null,null,"05-15 Nisan",null,null,null,null,null,null,null,null,null,null,null,null,null,null,null,null,null,null,null,null,null,{"$f":"IF(H374=\"\",\"\",GİRİŞ!G$33)","v":0},null,null,null,null,null,null,"TL"]
[null,null,null,{"$f":"IF(H375=\"\",\"\",9)","v":9},null,null,null,"01-31 Mayıs",null,null,null,null,null,null,null,"2027",null,null,null,null,null,"05-15 Mayıs",null,null,null,null,null,null,null,null,null,null,null,null,null,null,null,null,null,null,null,null,null,{"$f":"IF(H375=\"\",\"\",GİRİŞ!G$33)","v":0},null,null,null,null,null,null,{"$f":"IF(H375=\"\",\"\",\"TL\")","v":"TL"}]
[null,null,null,{"$f":"IF(H376=\"\",\"\",10)","v":""},null,null,null,"",null,null,null,null,null,null,null,"",null,null,null,null,null,"",null,null,null,null,null,null,null,null,null,null,null,null,null,null,null,null,null,null,null,null,null,{"$f":"IF(H376=\"\",\"\",GİRİŞ!G$33)","v":""},null,null,null,null,null,null,""]
[null,null,null,{"$f":"IF(H377=\"\",\"\",11)","v":""},null,null,null,"",null,null,null,null,null,null,null,"",null,null,null,null,null,"",null,null,null,null,null,null,null,null,null,null,null,null,null,null,null,null,null,null,null,null,null,{"$f":"IF(H377=\"\",\"\",GİRİŞ!G$33)","v":""},null,null,null,null,null,null,""]
[null,null,null,{"$f":"IF(H378=\"\",\"\",12)","v":""},null,null,null,"",null,null,null,null,null,null,null,"",null,null,null,null,null,"",null,null,null,null,null,null,null,null,null,null,null,null,null,null,null,null,null,null,null,null,null,{"$f":"IF(H378=\"\",\"\",GİRİŞ!G$33)","v":""},null,null,null,null,null,null,""]
[null,null,null,"T O P L A M :",null,null,null,null,null,null,null,null,null,null,null,null,null,null,null,null,null,null,null,null,null,null,null,null,null,null,null,null,null,null,null,null,null,null,null,null,null,null,null,{"$f":"SUM(AM367:AX378)","v":0},null,null,null,null,null,null,{"$f":"IF(AR379>0,\"TL\",\"\")","v":""}]
[null,null,"Yüklenici (kiracı) yukarıda belirtilen süreler içerisinde, kira sözleşmesinin 7.Madde hükümlerine uymadığı\ntakdirde sözleşmesi tek taraflı feshedilir."]
[]
[null,"6.",null,"Yüklenici (kiracı) yatırdığı kira bedeli dekont aslının birer suretini en geç bir hafta içinde elden birliğe/okul müdürlüğüne teslim etmek zorundadır. Birliğe/okul müdürlüğü kira ve kiracı ile ilgili (yazışma denetimler, İl/İlçe payları, arz bedeli, elektrik ve su bedellerinin ödeme belgeleri) bilgilerini il/ilçeye bildirmek zorundadır."]
[]
[]
[null,null,null,"İş bu kira ödeme şartnamesi altı (6) maddeden ibarettir.",null,null,null,null,null,null,null,null,null,null,null,null,null,null,null,null,null,null,null,null,null,null,null,null,null,null,null,null,null,null,null,null,null,null,null,null,null,null,{"$f":"GİRİŞ!F18","v":0}]
[]
[]
[null,null,{"$f":"C288","v":0},null,null,null,null,null,null,null,null,null,null,null,null,null,null,null,{"$f":"S288","v":0},null,null,null,null,null,null,null,null,null,null,null,null,null,null,{"$f":"AH288","v":0}]
[null,null,"Birlik Başkanı",null,null,null,null,null,null,null,null,null,null,null,null,null,null,null,"Yüklenici",null,null,null,null,null,null,null,null,null,null,null,null,null,null,"Esnaf Odası Başkanı"]
[null,"Sy.6/6",null,null,null,null,null,null,null,null,null,null,null,null,null,null,null,null,null,null,null,null,null,null,null,null,null,null,null,null,null,null,null,null,null,null,null,null,null,null,null,null,null,null,null,null,null,null,null,null,null,null,{"$f":"GİRİŞ!F$6","v":0}]